Cogmind - Beta 11 @@@ ROGUE MODE // 2022.03.21 @ 02:01:20 Player: Shin Result: Destroyed by G-34 Mercenary with Small Laser Performance ------------- Evolutions (1) 500 Regions Visited (2) 400 Robots Destroyed (22) 110 Value Destroyed (461) 461 Prototype IDs (1) 20 Alien Tech Used (0) 0 Bonus (0) 0 TOTAL SCORE: 1491 Bonus ------- None Cogmind --------- Core Integrity 0/400 Matter 300/300 Energy 100/100 System Corruption 5% Temperature Cool (6) Movement Core (50) Location -9/Materials Parts ------- > --- POWER (1) -------- (None) > --- PROPULSION (4) --- (None) > --- UTILITY (2) ------ (None) > --- WEAPON (2) ------- (None) > --- INVENTORY (5) ---- Aluminum Leg Aluminum Leg Core Shielding Utility Shielding Datajack Peak State ------------ > --- POWER ------------ (None) > --- PROPULSION ------- Aerolev Unit Aerolev Unit Aerolev Unit Aerolev Unit > --- UTILITY ---------- Large Storage Unit Structural Scanner > --- WEAPON ----------- (None) > --- INVENTORY -------- Aluminum Leg Aluminum Leg Heat Sink Weight Redist. System Core Shielding Core Shielding Utility Shielding Light Armor Plating Light Armor Plating Light Armor Plating Datajack [Rating: 19] Favorites ----------- Power Ion Engine Engine Ion Engine Propulsion Light Treads Treads Light Treads Leg Aluminum Leg Wheel Wheel Hover Unit Aerolev Unit Utility Large Storage Unit Device Structural Scanner Storage Large Storage Unit Weapon Light Assault Rifle Energy Gun EM Pulse Gun Ballistic Gun Light Assault Rifle Special Weapon Mining Laser Build | -11 -10 -9 ------- Run | Scr Mat Mat Slots Evolved 2 | . . 2 Power . | . . . Propulsion 2 | . . 2 Utility . | . . . Weapon . | . . . Parts Attached 25 | . 18 7 Power 5 | . 4 1 Engine 5 | . 4 1 Core . | . . . Reactor . | . . . Propulsion 14 | . 8 6 Treads 7 | . 5 2 Leg . | . . . Wheel 3 | . 3 . Hover 4 | . . 4 Flight . | . . . Utility 2 | . 2 . Device 1 | . 1 . Storage 1 | . 1 . Processor . | . . . Hackware . | . . . Protection . | . . . Artifact . | . . . Weapon 4 | . 4 . Energy Gun 1 | . 1 . Energy Cannon . | . . . Ballistic Gun 1 | . 1 . Ballistic Cannon . | . . . Launcher . | . . . Special Weapon 2 | . 2 . Impact Weapon . | . . . Slashing Weapon . | . . . Piercing Weapon . | . . . Special Melee Weapon . | . . . Unidentified Prototypes 1 | . . 1 Parts Lost 19 | . 9 10 Power 3 | . 1 2 Propulsion 9 | . 3 6 Utility 1 | . . 1 Weapon 6 | . 5 1 Highest Loss Streak 7 | . 7 5 To Critical Strikes . | . . . Average Slot Usage (%) 87 | . 92 67 Engine 12 | . 13 6 Treads 13 | . 13 17 Leg 1 | . 2 . Wheel 10 | . 11 6 Hover 2 | . . 13 Device 9 | . 10 8 Storage 13 | . 14 10 Energy Gun 1 | . . 5 Ballistic Gun 15 | . 19 . Special Weapon 4 | . 5 . Naked Turns 3 | . . 3 Heaviest Build 29 | 11 29 28 Greatest Support 40 | 20 20 40 Greatest Overweight (x) 6 | . 2 6 Average Overweight (x) 1 | . 1 . Largest Inventory Capacity 15 | 8 15 15 Average Capacity 13 | 8 13 14 Most Carried 14 | 6 14 12 Average Carried 9 | 6 9 11 Final Capacity 15 | 8 15 5 Final Carried 13 | 6 13 5 Class Distribution -------------------- 100% | Mutant Dominant Class ---------------- Mutant | -10/Materials Mutant | -9/Materials Resources | -11 -10 -9 ----------- Run | Scr Mat Mat Matter Collected 561 | 220 314 27 Remotely . | . . . Salvage Created 748 | 110 586 52 Parts 51 | 6 42 3 Haulers Intercepted 2 | . 2 . Recyclers Shooed 2 | 1 1 . Parts Field Recycled . | . . . Retrieved Matter . | . . . Parts Self-Destructed . | . . . Prevented . | . . . Kills | -11 -10 -9 ------- Run | Scr Mat Mat Combat Hostiles Destroyed 16 | . 15 1 Guns 14 | . 13 1 Cannons 1 | . 1 . Classes Destroyed 6 | 2 4 . Worker 1 | . 1 . Tunneler 2 | 1 1 . Hauler 2 | . 2 . Recycler 1 | 1 . . Swarmer 6 | . 6 . Grunt 10 | . 9 1 Best Kill Streak 4 | 2 4 1 Combat Bots Only 3 | . 3 1 Max Kills in Single Turn 1 | 1 1 1 Gunslinging . | . . . Exploded . | . . . Melee . | . . . Uniques/NPCs Destroyed . | . . . Combat | -11 -10 -9 -------- Run | Scr Mat Mat Damage Taken 2415 | . 1206 1209 Core 649 | . 242 407 Absorbed by Shields . | . . . Core Remaining (%) 51 | 100 3 . Volleys Fired 100 | 5 83 12 Largest 2 | 2 2 1 Hottest 120 | 40 120 40 Shots Fired 148 | 10 126 12 Gun 143 | 10 121 12 Cannon . | . . . Launcher . | . . . Special 5 | . 5 . Kinetic 121 | 10 111 . Thermal 5 | . 5 . Explosive . | . . . Electromagnetic 22 | . 10 12 Robot Hit Streak 15 | 2 15 5 Robot Miss Streak 4 | 1 4 3 Penetration Max . | . . . Secondary Targets 3 | . 3 . Max Gunslinging Chain 1 | . 1 . Shots Hit Robots 91 | 5 78 8 Core Hits 41 | 3 34 4 Critical Kills . | . . . Critical Parts Destroyed . | . . . Critical Strikes . | . . . Melee Attacks . | . . . Impact . | . . . Slashing . | . . . Piercing . | . . . Sneak Attacks . | . . . Combat Hostiles . | . . . Follow-up Attacks . | . . . Damage Inflicted 1082 | 61 887 134 Guns 948 | 61 782 105 Cannons . | . . . Explosions 33 | . 33 . Melee . | . . . Ramming 29 | . . 29 Kinetic 749 | 61 688 . Thermal 105 | . 105 . Explosive . | . . . Electromagnetic 199 | . 94 105 Impact . | . . . Slashing . | . . . Piercing . | . . . Highest Corruption 5 | . . 5 Average Corruption 4 | . . 4 Corruption Purged . | . . . Corruption Blocked . | . . . Effects 1 | . . 1 Matter Fused 1 | . . 1 Overload Shots . | . . . Overflow Damage . | . . . Projectiles . | . . . Explosions . | . . . Melee . | . . . Knockbacks . | . . . Impact . | . . . Kinetic . | . . . Secondary . | . . . Self-Inflicted Damage 15 | . 4 11 Shots 1 | . 1 . Rammed 11 | . . 11 Targets Rammed 11 | . . 11 Kicked . | . . . Crushed . | . . . Highest Temperature 73 | . 73 24 Average Temperature 25 | . 28 13 Received Heat Transfer 1098 | . 483 615 Siege Activations . | . . . Robots Corrupted 1 | . 1 . Combat Hostiles 1 | . 1 . Parts Fried 2 | . 2 . Impact Corruptions . | . . . Robots Melted . | . . . Combat Hostiles . | . . . Parts Melted . | . . . Heat Transferred 200 | . 200 . Parts Sabotaged . | . . . Parts Stolen . | . . . Parts Stripped . | . . . Power Chain Reactions 1 | . 1 . Missiles Intercepted . | . . . Alert | -11 -10 -9 ------- Run | Scr Mat Mat Peak Influence 256 | 10 256 191 Initial 71 | . 6 71 Average 130 | 7 137 115 Maximum Alert Level 1 | . 1 . Low Security (%) 83 | 100 79 100 Level 1 16 | . 20 . Level 2 . | . . . Level 3 . | . . . Level 4 . | . . . Level 5 . | . . . High Security . | . . . Max Security . | . . . Squads Dispatched 5 | . 5 . Investigation 1 | . 1 . Extermination . | . . . Reinforcement 4 | . 4 . Assault . | . . . Garrison . | . . . Intercept . | . . . Searches Triggered . | . . . Construction Impeded . | . . . Haulers Reinforced . | . . . Active Scanning Responses . | . . . Cargo Convoy Interrupts . | . . . Stealth | -11 -10 -9 --------- Run | Scr Mat Mat Distress Signals 2 | . 1 1 Communications Jammed . | . . . Distress Signals . | . . . Times Spotted 55 | . 33 22 Peak Tracking Total 11 | . 5 11 Tactical Retreats 5 | . 1 4 Traps | -11 -10 -9 ------- Run | Scr Mat Mat Traps Triggered 1 | . 1 . Indirectly . | . . . Trap Hack Attempts . | . . . Triggered . | . . . Disarmed . | . . . Reprogrammed . | . . . Reused . | . . . Traps Extracted . | . . . Installed . | . . . Triggered . | . . . Machines | -11 -10 -9 ---------- Run | Scr Mat Mat Machines Disabled 1 | . . 1 Max in Single Turn 1 | . . 1 Machines Sabotaged . | . . . Garrisons Compromised . | . . . Overloaded Fab Kills . | . . . Hacking | -11 -10 -9 --------- Run | Scr Mat Mat Machines Accessed 4 | . 4 . Terminals 3 | . 3 . Fabricators . | . . . Repair Stations . | . . . Recycling Units 1 | . 1 . Scanalyzers . | . . . Garrison Access . | . . . Total Hacks 11 | . 11 . Successful 5 | . 5 . Failed 6 | . 6 . Catastrophic 2 | . 2 . Database Lockouts . | . . . Manual 3 | . 3 . Terminals 9 | . 9 . Fabricators . | . . . Repair Stations . | . . . Recycling Units 2 | . 2 . Scanalyzers . | . . . Garrison Access . | . . . Terminal Hacks 4 | . 4 . Emergency Access Points 1 | . 1 . Alert Level 2 | . 2 . Zone Layout 1 | . 1 . Fabricator Hacks . | . . . Repair Station Hacks . | . . . Recycling Unit Hacks 1 | . 1 . Report Inventory 1 | . 1 . Scanalyzer . | . . . Garrison Access Hacks . | . . . Unauthorized Hacks . | . . . Terminals . | . . . Fabricators . | . . . Repair Stations . | . . . Recycling Units . | . . . Scanalyzers . | . . . Garrison Access . | . . . Data Cores Recovered . | . . . Used . | . . . Hacking Detections 4 | . 4 . Full Trace Events . | . . . Feedback Events . | . . . Feedback Blocked . | . . . Robot Schematics Acquired . | . . . Robots Built . | . . . Authchips . | . . . Time . | . . . Total Robot Build Rating . | . . . Part Schematics Acquired . | . . . Parts Built . | . . . Authchips . | . . . Time . | . . . Total Part Build Rating . | . . . Parts Repaired . | . . . Time . | . . . Parts Recycled . | . . . Recycled Matter . | . . . Retrieved Matter . | . . . Retrieved Components . | . . . Parts Scanalyzed . | . . . Part Schematics Acquired . | . . . Parts Damaged . | . . . Bothacking | -11 -10 -9 ------------ Run | Scr Mat Mat Used RIF Installer . | . . . Robots Hacked . | . . . Non-combat . | . . . Combat . | . . . Robot Hacks Applied . | . . . Relay Couplers Released . | . . . Fabnet Peak Effective % . | . . . Robots Rewired . | . . . Allies Hacked . | . . . Hacks Repelled . | . . . Allies | -11 -10 -9 -------- Run | Scr Mat Mat Total Allies . | . . . Largest Group . | . . . Highest-Rated Group . | . . . Highest-Rated Ally . | . . . Total Orders . | . . . Ally Attacks . | . . . Total Damage . | . . . Kills . | . . . Allies Corrupted . | . . . Allies Melted . | . . . Intel | -11 -10 -9 ------- Run | Scr Mat Mat Robot Analysis Total . | . . . Derelict Logs Recovered . | . . . Drone Launches . | . . . Drone Recoveries . | . . . Exploration | -11 -10 -9 ------------- Run | Scr Mat Mat Turns Passed 1431 | 33 1133 265 Spaces Moved 927 | 16 744 167 Core 8 | . . 8 Treads 154 | . 92 62 Legs 89 | 16 73 . Wheels 596 | . 579 17 Hover 80 | . . 80 Flight . | . . . Fastest Speed 38 | 120 110 38 Average Speed 118 | 120 118 120 Slowest Speed 350 | 120 240 350 Overloaded Moves . | . . . Propulsion Burnouts . | . . . Robots Hopped . | . . . Cave-ins Triggered . | . . . Exploration Rate (%) 33 | 3 86 11 Regions Visited 2 Branch Regions . Pre-discovered Areas . | . . . Known Exits Taken . | . . . Unknown Exits Taken 2 | 1 1 . Scrap Searched . | . . . Spaces Dug . | . . . Terrain Destroyed 3 | . 3 . Melee . | . . . Projectile 1 | . 1 . AOE 2 | . 2 . Terrain Rammed . | . . . Walls Destroyed . | . . . Machines Disabled . | . . . Actions | -11 -10 -9 --------- Run | Scr Mat Mat Total 1111 | 20 879 212 Wait 15 | . 7 8 Move 925 | 15 743 167 Hop . | . . . Pick Up 26 | . 21 5 Fast Attach 1 | . 1 . Attach 20 | . 13 7 Detach 3 | . 3 . Swap 4 | . 4 . Drop 6 | . 4 2 Fire 100 | 5 83 12 Melee . | . . . Ram 8 | . . 8 Kick . | . . . Crush 3 | . . 3 Escape Stasis . | . . . Rewire . | . . . Trap . | . . . Miscellaneous . | . . . Route ------- -11/Scrapyard -10/Materials (discovered 3 exits: [*Mat x3]) -9/Materials History --------- Turn | Location | Event 16 | -11/Scrapyard | Discovered new exit (range 3) 34 | -11/Scrapyard | Entered Materials 306 | -10/Materials | Build established: Mutant 611 | -10/Materials | Discovered new exit (range 12) 768 | -10/Materials | Discovered new exit (range 6) 944 | -10/Materials | Discovered new exit (range 15) 1022 | -10/Materials | Core integrity fell below 50% 1035 | -10/Materials | Core integrity fell below 20% 1091 | -10/Materials | Lost 7 parts (1p2n4w) 1167 | -10/Materials | Entered another Materials area 1167 | -9/Materials | Evolved 2 slots: Propulsion x2 1346 | -9/Materials | Lost 5 parts (2p2n1w) 1416 | -9/Materials | Core integrity fell below 50% 1427 | -9/Materials | Core integrity fell below 20% 1429 | -9/Materials | Released all parts (1) 1432 | -9/Materials | Destroyed by G-34 Mercenary with Small Laser Last Messages --------------- 01374_ K-01 Serf collects debris. 01380_ R-06 Scavenger collects Aluminum Leg. 01382_ Acquired 19 matter. 01383_ R-06 Scavenger collects Signal Interpreter. 01384_ K-01 Serf collects debris. 01405_ Aerolev Unit destroyed. 01408_ K-01 Serf collects debris. 01411_ Aerolev Unit destroyed. 01413_ Slammed into G-34 Mercenary. 01414_ K-01 Serf collects debris. 01415_ Slammed into G-34 Mercenary. 01415_ Aerolev Unit broken. 01415_ Destabilizing: Short circuit. 01417_ K-01 Serf collects debris. 01418_ Slammed into G-34 Mercenary. 01418_ Broken Aerolev Unit destroyed. 01421_ K-01 Serf collects debris. 01429_ Released Lrg. Storage Unit. 01430_ K-01 Serf destroyed. 01431_ Critical hit (Burn: +37). Map ----- +----------------------------------------------------+ | ?## """""## ########???????????????????????? | | ?## """""## ###### ???????????????????????? | | ?## """""## ##?????????????????????????????? | | ?## """ ## ##?????????????????????????????? | | ?## ## %##?### ????????????????????? | | ??? ## ###########????????????????????? | | ???#####+#### %#### ##????????????????????? | | ???## ##????????????????????? | | ???## ##????????????????????? | | ???## ##????????????????????? | | ???############+### ##????????????????????? | | ???#### % %=## ###????????????????????? | | ?????## """ """ ##g ###????????????????????? | | ?????## """ "" ##a ##?????????????????????? | | ?????## """ """ ##b ##?????????????????????? | | ?????## ##aY%##?????????????????????? | | ?????## ## %#??????????????????????? | | ?????## ##g %#??????????????????????? | | ?????###############ggg#??????????????????????? | | ?????######## #!g!#??????????????????????? | | ???????????????????# !b#??????????????????????? | | ???????????????????+ g #??????????????????????? | | ?????????????????? # #??????????????????????? | | ?????????????????? # #??????????????????????? | | ?????????????????"?#t #??????????????????????? | | ????????????????##?# @#??????????????????????? | | ???????????????????# #??????????????????????? | | ???????????????????# #??????????????????????? | | ???????????????????+ +??????????????????????? | | ???????????????????#=% #??????????????????????? | | ???????????????????# = #??????????????????????? | | ???????????????????# #??????????????????????? | | ???????????????????# a#??????????????????????? | | ???????????????????# w#??????????????????????? | | ???????????????????# ???????????????????????? | | ???????????????????+ ???????????????????????? | | ???????????????????# ???????????????????????? | | ???????????????????# ???????????????????????? | | ???????????????????# ???????????????????????? | | ???????????????????####???????????????????????? | | ??????????????????????????????????????????????? | | ??????????????????????????????????????????????? | | ??????????????????????????????????????????????? | | ??????????????????????????????????????????????? | | ??????????????????????????????????????????????? | | ??????????????????????????????????????????????? | | ??????????????????????????????????????????????? | | ??????????????????????????????????????????????? | | ??????????????????????????????????????????????? | | ??????????????????????????????????????????????? | +----------------------------------------------------+ Best States ------------- Heat Dissipation 28 Energy Generation 10 Energy Capacity 250 Matter Stores 300 Matter Capacity 300 Sight Range 16 Terrain Scan Density 10 Evasion (%) 57 Recoil Reduction 3 Item Schematics ----------------- None Robot Schematics ------------------ None Fabricated ------------ Nothing Alien Tech Used ----------------- None Achievements -------------- None Challenges ------------ None Game ------ Seed SchematicPoweredPrototype Manual? 0 Play Time 00:21:43 Cumulative 67.3 hours Start 2022.03.21 @ 01:39:44 End 2022.03.21 @ 02:01:20 Sessions 1 Manual Loads 0 Difficulty Rogue Special Mode None Game No. 49 Rogue 49 Adventurer 0 Explorer 0 Win Type - Total 0 Types 0/0/0/0/0/0/0/0/0 Lore% 42 Gallery% 52 Achievement% 37 Wizard Run 0 Options --------- ASCII 0 Keyboard 0 Movement Arrows Keybinds 1 Fullscreen 1 Font 18/TerminusBold Map View 76x50 Tactical HUD 1 Map Filters NONE Filters NONE Steam 1 RUN: 99490f1b-6937-4a59-96e3-61e98ae02a99